bitfinex/quotes_SOLUSD_20240825
["timestamp","ask_amount","ask_price","bid_price","bid_amount"]
[1724566622206,9.86768339,158.07,157.99,45.0]
[1724566622583,16.19318339,158.09,157.99,51.33596202]
[1724566622784,20.0,158.08,158.0,6.33596202]
[1724566624503,20.0,158.08,157.99,45.0]
[1724566624701,16.19318339,158.09,157.99,45.0]
[1724566624906,16.19318339,158.09,158.0,6.33516449]
[1724566625205,9.86768339,158.07,157.99,51.33516449]
[1724566625796,9.86768339,158.07,158.0,6.33516449]
[1724566626699,9.86768339,158.05,157.99,6.33516449]
[1724566627199,9.86768339,158.05,157.97,16.5583]
[1724566627200,9.86768339,158.05,157.98,6.33516449]
[1724566628004,9.86768339,158.03,157.98,6.33516449]
[1724566628218,16.19568339,158.03,157.96,6.33516449]
[1724566628511,6.3291,158.01,157.94,6.33516449]
[1724566628713,9.86768339,157.99,157.94,6.33516449]
[1724566628908,9.86768339,157.99,157.89,10.69278309]
[1724566629212,9.86768339,157.99,157.94,6.33768097]
[1724566629414,9.86768339,157.99,157.89,10.69278309]
[1724566629610,9.86768339,157.99,157.93,6.33792585]
[1724566631409,9.86768339,157.99,157.92,6.33792585]
[1724566638703,6.139,158.0,157.92,6.33792585]
[1724566639033,25.02908339,158.02,157.93,6.33782573]
[1724566639232,25.02908339,158.02,157.91,17.78996555]
[1724566639233,25.02908339,158.02,157.91,9.86768339]
[1724566639523,25.02908339,158.02,157.94,6.33726339]
[1724566639894,15.1614,158.02,157.94,6.33726339]
[1724566640202,15.1614,158.02,157.95,7.60325251]
[1724566640401,15.1614,158.02,157.96,1.265984]
[1724566641298,15.1614,158.02,157.96,8.40810398]
[1724566642108,15.1614,158.02,157.96,7.14211998]
[1724566645022,15.1614,158.02,157.95,16.20494678]
[1724566645212,15.1614,158.02,157.96,7.14205793]
[1724566647426,15.1614,158.02,157.97,4.67047904]
[1724566647627,15.1614,158.02,157.96,7.14205793]
[1724566648001,9.86768339,158.01,157.96,7.14205793]
[1724566648224,9.86768339,158.01,157.92,54.86768339]
[1724566648524,9.86768339,158.01,157.95,6.33680943]
[1724566648723,9.86768339,158.01,157.96,7.14208476]
[1724566649107,9.86768339,158.01,157.94,7.14208476]
[1724566649308,9.86768339,158.01,157.95,7.14208476]
[1724566649530,9.86768339,158.01,157.94,7.14208476]
[1724566649824,16.19638339,158.01,157.94,7.14208476]
[1724566650126,9.86768339,157.99,157.93,7.14208476]
[1724566650425,9.86768339,157.99,157.92,6.33680929]
[1724566650812,9.86768339,157.99,157.92,13.47889405]
[1724566651015,9.86768339,157.99,157.92,6.33680929]
[1724566651219,9.86768339,157.99,157.92,13.47889405]
[1724566651520,9.86768339,157.99,157.92,6.33680929]
[1724566651702,9.86768339,157.99,157.92,13.47889405]
[1724566651902,9.86768339,157.99,157.92,6.33680929]
[1724566652115,9.86768339,157.99,157.92,13.47889405]
[1724566652312,9.86768339,157.99,157.93,6.19283277]
[1724566653313,16.19638339,158.01,157.93,6.19283277]
[1724566654026,16.19638339,158.01,157.93,13.33491753]
[1724566656031,16.19638339,158.01,157.93,6.19283277]
[1724566656818,16.19638339,158.01,157.94,1.58450913]
[1724566657017,16.19638339,158.01,157.95,1.58450913]
[1724566657217,16.19638339,158.01,157.96,1.58450913]
[1724566657411,16.19638339,158.01,157.97,1.58450913]
[1724566657609,16.19638339,158.01,157.98,1.58450913]
[1724566657812,16.19638339,158.01,157.9,17.78869518]
[1724566657813,16.19638339,158.01,157.9,9.86768339]
[1724566658011,16.19638339,158.01,157.93,6.19282698]
[1724566658315,16.19638339,158.01,157.94,1.58451857]
[1724566658538,16.19638339,158.01,157.95,1.58451857]
[1724566658717,16.19638339,158.01,157.96,1.58451857]
[1724566658917,16.19638339,158.01,157.97,1.58451857]
[1724566659239,9.86768339,157.99,157.98,1.58451857]
[1724566659537,9.86768339,157.99,157.91,13.33706204]
[1724566659538,22.20588339,157.99,157.91,13.33706204]
[1724566659744,15.87608339,157.99,157.92,14.92157585]
[1724566660037,15.87608339,157.99,157.93,1.58464279]
[1724566660217,15.87608339,157.99,157.94,1.58464279]
[1724566660534,6.3299,157.98,157.95,1.58464279]
[1724566660745,6.3299,157.98,157.96,1.58464279]
[1724566660922,6.3299,157.98,157.91,6.19342902]
[1724566661234,6.3299,157.98,157.92,7.77845102]
[1724566661413,6.3299,157.98,157.93,1.58470817]
[1724566661613,9.86768339,157.97,157.91,6.19374285]
[1724566661823,26.21738339,157.97,157.92,6.19374285]
[1724566662035,26.21738339,157.97,157.9,6.19395557]
[1724566662357,32.54768339,157.97,157.91,6.19395557]
[1724566662631,26.21738339,157.97,157.9,6.19395557]
[1724566662823,26.21738339,157.97,157.91,6.19395557]
[1724566663031,32.54768339,157.97,157.9,6.19395557]
[1724566663230,32.54768339,157.97,157.91,6.19395557]
[1724566663551,32.54768339,157.97,157.9,6.19395557]
[1724566666241,32.54768339,157.97,157.9,6.19418167]
[1724566667738,32.54768339,157.97,157.9,6.19409538]
[1724566668131,32.54768339,157.97,157.89,0.8250997]
[1724566668743,32.54768339,157.97,157.9,6.19409538]
[1724566668938,32.54768339,157.97,157.91,6.19409538]
[1724566669130,32.54768339,157.97,157.9,6.19409538]
[1724566669331,16.3497,157.97,157.91,6.19409538]
[1724566669734,16.3497,157.97,157.9,6.19409538]
[1724566669940,16.3497,157.97,157.91,6.19409538]
[1724566670428,16.3497,157.97,157.92,1.26633789]
[1724566670633,16.3497,157.97,157.91,1.26633332]
[1724566670934,16.3497,157.97,157.92,4.3690406]
[1724566671134,16.3497,157.97,157.91,1.26633332]
[1724566671135,16.3497,157.97,157.93,4.36904018]
[1724566671436,16.3497,157.97,157.94,4.36904018]
[1724566671635,16.3497,157.97,157.91,1.26633332]
[1724566671835,16.3497,157.97,157.92,4.36873866]
[1724566672029,16.3497,157.97,157.93,4.36873866]
[1724566672230,16.3497,157.97,157.94,4.36873866]
[1724566672555,16.3497,157.97,157.95,4.36873866]
[1724566672847,16.3497,157.97,157.91,1.26633332]
[1724566673027,16.3497,157.97,157.92,4.36867536]
[1724566673340,16.3497,157.97,157.93,4.36867536]
[1724566673542,16.3497,157.97,157.94,2.62570597]
[1724566673728,16.3497,157.97,157.95,2.62570597]
[1724566673923,16.3497,157.97,157.96,2.62570597]
[1724566674346,16.3497,157.97,157.91,1.26633257]
[1724566674539,16.3497,157.97,157.92,2.62570488]
[1724566674726,16.3497,157.97,157.93,2.62570488]
[1724566675235,16.3497,157.97,157.9,9.18942985]
[1724566677745,16.3497,157.97,157.9,1.26633192]
[1724566678051,16.3497,157.97,157.9,9.18938517]
[1724566678835,16.3497,157.97,157.9,17.11248349]
[1724566679629,16.3497,157.97,157.9,9.18943024]
[1724566680330,16.3497,157.97,157.9,7.92309832]
[1724566680537,16.3497,157.97,157.91,45.0]
[1724566680734,16.19708339,158.0,157.91,54.86768339]
[1724566680735,9.86768339,158.0,157.91,54.86768339]
[1724566680935,15.5506,158.01,157.92,1.26612529]
[1724566681143,15.5506,158.01,157.92,7.92289731]
[1724566681539,9.86768339,158.0,157.91,62.7905807]
[1724566683567,9.86768339,158.0,157.91,54.86768339]
[1724566683858,9.86768339,158.0,157.91,62.79027826]
[1724566685668,9.86768339,158.0,157.92,7.92259487]
[1724566686238,15.5506,158.01,157.92,7.92259487]
[1724566686540,31.74708339,158.01,157.92,7.92259487]
[1724566687456,31.74708339,158.01,157.91,9.86768339]
[1724566687647,31.74708339,158.01,157.92,7.92258407]
[1724566689932,21.8794,158.01,157.93,1.26625296]
[1724566690159,15.5506,158.01,157.93,17.79026746]
[1724566690453,15.5506,158.01,157.93,17.79011464]
[1724566692838,15.5506,158.01,157.95,9.86768339]
[1724566693051,15.5506,158.05,157.96,1.26598166]
[1724566693254,15.5506,158.05,157.97,9.86768339]
[1724566694262,15.5506,158.05,157.95,7.92243125]
[1724566694263,9.86768339,158.02,157.95,7.92243125]
[1724566695141,9.86768339,158.02,157.94,7.92243125]
[1724566695960,16.19608339,158.02,157.94,7.92243125]
[1724566696164,16.19608339,158.02,157.93,7.92243125]
[1724566696459,9.86768339,158.0,157.93,7.92243125]
[1724566696845,9.86768339,158.0,157.92,7.92267421]
[1724566697246,9.86768339,158.0,157.93,7.92267421]
[1724566697446,9.86768339,158.0,157.9,25.79668339]
[1724566697641,9.86768339,158.0,157.93,7.92258435]
[1724566698340,9.86768339,158.0,157.9,25.79668339]
[1724566698564,9.86768339,158.0,157.91,1.26631308]
[1724566699468,21.771,158.01,157.92,9.86768339]
[1724566700470,28.0997,158.01,157.92,9.86768339]
[1724566702768,28.0997,158.01,157.9,15.929]
[1724566702769,16.19678339,158.0,157.9,15.929]
[1724566702971,16.19678339,158.0,157.9,25.79668339]
[1724566703472,6.3295,157.99,157.9,9.86768339]
[1724566704448,9.86768339,157.98,157.89,0.8250997]
[1724566704770,15.7172,157.96,157.89,0.8250997]
[1724566707770,15.7172,157.96,157.9,4.67257113]
[1724566707952,31.91558339,157.96,157.91,4.67257113]
[1724566708154,25.58488339,157.96,157.91,4.67257113]
[1724566708380,25.58488339,157.96,157.92,4.67257113]
[1724566708688,25.58488339,157.96,157.93,4.67257113]
[1724566708847,25.58488339,157.96,157.94,4.67257113]
[1724566709048,25.58488339,157.96,157.95,4.67257113]
[1724566710849,25.58488339,157.96,157.89,0.8250997]
[1724566711071,25.58488339,157.96,157.9,4.67268158]
[1724566711253,25.58488339,157.96,157.91,4.67268158]
[1724566711454,25.58488339,157.96,157.92,4.67268158]
[1724566711765,25.58488339,157.96,157.93,4.67268158]
[1724566712074,31.62918339,157.96,157.94,4.67268158]
[1724566712450,26.3311,157.95,157.89,0.8250997]
[1724566712655,9.86768339,157.92,157.9,4.67377615]
[1724566712960,9.86768339,157.92,157.91,4.67377615]
[1724566714275,9.86768339,157.92,157.89,0.8250997]
[1724566714583,9.86768339,157.92,157.9,4.64890674]
[1724566714767,9.86768339,157.92,157.89,0.8250997]
[1724566715246,9.86768339,157.92,157.9,4.64890674]
[1724566715451,9.86768339,157.92,157.89,0.8250997]
[1724566715871,9.86768339,157.92,157.9,4.64890674]
[1724566716063,9.86768339,157.92,157.89,0.8250997]
[1724566716261,9.86768339,157.92,157.9,4.64890674]
[1724566716463,9.86768339,157.92,157.89,0.8250997]
[1724566716771,9.86768339,157.92,157.9,4.64904472]
[1724566716957,9.86768339,157.92,157.89,0.8250997]
[1724566717153,9.86768339,157.92,157.9,4.64904472]
[1724566717359,9.86768339,157.92,157.89,0.8250997]
[1724566720369,20.0,157.95,157.89,0.8250997]
[1724566720569,9.86768339,157.92,157.89,0.8250997]
[1724566721671,9.86768339,157.92,157.9,1.58525779]
[1724566721855,9.86768339,157.92,157.89,0.8250997]
[1724566722051,9.86768339,157.92,157.9,1.58525707]
[1724566722246,9.86768339,157.92,157.89,0.8250997]
[1724566722476,9.86768339,157.92,157.9,1.58525683]
[1724566722672,9.86768339,157.92,157.89,0.8250997]
[1724566722975,9.86768339,157.92,157.9,1.58525807]
[1724566723173,9.86768339,157.92,157.89,0.8250997]
[1724566723476,9.86768339,157.92,157.9,1.58525798]
[1724566723662,9.86768339,157.92,157.89,0.8250997]
[1724566723969,9.86768339,157.92,157.9,1.58525798]
[1724566724153,9.86768339,157.92,157.89,0.8250997]
[1724566726058,16.20008339,157.92,157.89,0.8250997]
[1724566726472,9.86768339,157.9,157.89,0.8250997]
[1724566726664,16.20078339,157.9,157.89,0.8250997]
[1724566729375,9.86768339,157.9,157.89,0.8250997]
[1724566730275,16.4948,157.95,157.89,0.8250997]
[1724566730478,26.36248339,157.95,157.89,0.8250997]
[1724566731569,32.69378339,157.95,157.89,0.8250997]
[1724566732474,9.86768339,157.93,157.89,0.8250997]
[1724566734772,32.69378339,157.95,157.89,0.8250997]
[1724566735681,6.3315,157.94,157.89,0.8250997]
[1724566737980,22.8259,157.95,157.89,0.8250997]
[1724566738294,9.86768339,157.97,157.89,0.8250997]
[1724566738697,15.114,157.99,157.89,10.69278309]
[1724566738907,31.31118339,157.99,157.9,1.26641483]
[1724566739268,6.3295,157.99,157.9,1.26641483]
[1724566739485,9.86768339,158.0,157.92,6.6419]
[1724566739671,21.4422,158.03,157.93,15.6837]
[1724566739878,16.19628339,158.02,157.93,15.6837]
[1724566740270,9.86768339,158.0,157.93,15.6837]
[1724566740466,16.19688339,158.0,157.93,15.6837]
[1724566742069,16.19758339,157.98,157.89,26.37648309]
[1724566742265,16.19758339,157.98,157.9,8.41142883]
[1724566742482,16.19758339,157.98,157.9,1.2664867]
[1724566743987,9.86768339,157.96,157.89,16.5087997]
[1724566744496,6.3311,157.95,157.89,16.5087997]
[1724566744995,6.3319,157.93,157.89,16.5087997]
[1724566745291,6.3319,157.93,157.89,0.8250997]
[1724566747270,9.86768339,157.92,157.89,0.8250997]
[1724566747686,9.86768339,157.9,157.89,0.8250997]
[1724566748792,16.20078339,157.9,157.89,0.8250997]
[1724566748998,9.86768339,157.9,157.89,0.8250997]
[1724566749894,16.20078339,157.9,157.89,0.8250997]
[1724566751794,61.20078339,157.9,157.89,0.8250997]
[1724566752213,81.20078339,157.9,157.89,0.8250997]
[1724566760399,71.3331,157.9,157.89,0.8250997]
[1724566760704,81.20078339,157.9,157.89,0.8250997]
[1724566761280,6.3324,157.92,157.89,0.8250997]
[1724566761485,16.20008339,157.92,157.89,0.8250997]
[1724566762789,9.86768339,157.9,157.89,0.8250997]
[1724566763501,9.86768339,157.9,157.89,0.3250997]
[1724566764515,9.86768339,157.92,157.89,0.3250997]
[1724566765085,9.86768339,157.9,157.89,0.3250997]
[1724566765307,74.86768339,157.9,157.89,0.3250997]
[1724566766485,81.20078339,157.9,157.89,0.3250997]
[1724566772515,36.20078339,157.9,157.89,0.3250997]
[1724566773806,81.20078339,157.9,157.89,0.3250997]
[1724566776916,6.3331,157.9,157.89,0.3250997]
[1724566777113,6.3322,157.93,157.89,0.3250997]
[1724566778510,9.86768339,157.92,157.89,0.3250997]
[1724566779320,6.3331,157.9,157.89,0.3250997]
[1724566779523,81.20078339,157.9,157.89,0.3250997]
[1724566795355,36.20078339,157.9,157.89,0.3250997]
[1724566796432,81.20078339,157.9,157.89,0.3250997]
[1724566800227,26.3331,157.9,157.89,0.3250997]
[1724566801040,26.3331,157.9,157.82,14.9714497]
[1724566801221,26.3331,157.9,157.83,4.1932907]
[1724566801426,26.3331,157.9,157.84,1.58578797]
[1724566801633,26.3331,157.9,157.85,4.1932907]
[1724566801858,37.1847,157.97,157.86,4.1932907]
[1724566802027,16.19948339,157.94,157.87,10.5255907]
[1724566802225,9.86768339,157.94,157.88,4.1932907]
[1724566802532,9.86768339,157.94,157.89,4.1932907]
[1724566802731,6.3319,157.93,157.9,1.58578797]
[1724566802936,6.3319,157.93,157.91,1.58578797]
[1724566803262,6.3319,157.93,157.87,6.3323]
[1724566803543,6.3302,157.98,157.88,5.45826737]
[1724566803749,37.7217,158.01,157.89,2.60689632]
[1724566803750,16.19798339,157.97,157.89,2.60689632]
[1724566803931,16.19798339,157.97,157.9,2.60689632]
[1724566804136,16.19798339,157.97,157.92,16.4593]
[1724566804446,6.3303,157.97,157.93,2.60611035]
[1724566804653,16.19798339,157.97,157.92,16.4593]
[1724566804985,16.19798339,157.97,157.93,2.60594749]
[1724566805137,9.86768339,157.95,157.92,16.4593]
[1724566805340,16.19888339,157.95,157.92,16.4593]
[1724566805639,6.3315,157.94,157.88,16.4593]
[1724566805964,16.19918339,157.94,157.89,2.6068479]
[1724566806135,16.19918339,157.94,157.9,2.6068479]
[1724566806329,16.19918339,157.94,157.88,16.4593]
[1724566806661,16.19918339,157.94,157.89,2.60669129]
[1724566806857,16.19918339,157.94,157.9,2.60669129]
[1724566807033,6.3319,157.93,157.88,16.4593]
[1724566807235,6.3315,157.94,157.89,2.6066935]
[1724566807437,16.19918339,157.94,157.9,2.6066935]
[1724566807632,9.86768339,157.95,157.88,16.4593]
[1724566807850,9.86768339,157.95,157.89,2.60664798]
[1724566808048,9.86768339,157.95,157.9,2.60664798]
[1724566808256,16.19898339,157.95,157.88,16.4593]
[1724566808429,16.19898339,157.95,157.89,2.60638775]
[1724566808637,21.8991,158.01,157.9,2.60638775]
[1724566808847,9.86768339,157.97,157.91,2.60638775]
[1724566809164,20.0,157.96,157.88,16.4593]
[1724566809665,26.3307,157.96,157.89,2.60614879]
[1724566809987,26.3307,157.96,157.9,2.60614879]
[1724566810273,26.3307,157.96,157.91,2.60614879]
[1724566810475,26.3307,157.96,157.88,16.4593]
[1724566810679,26.3307,157.96,157.89,2.60614771]
[1724566810970,26.3307,157.96,157.9,2.60614771]
[1724566811178,26.3307,157.96,157.91,2.60614771]
[1724566811383,26.3307,157.96,157.88,23.60591853]
[1724566811567,26.3307,157.96,157.89,2.60611742]
[1724566811892,16.19888339,157.95,157.9,2.60611742]
[1724566812182,16.19888339,157.95,157.88,23.60591853]
[1724566812367,6.3315,157.94,157.89,2.60614915]
[1724566812559,6.3315,157.94,157.88,16.4593]
[1724566812886,6.3315,157.94,157.88,23.60596163]
[1724566813076,6.3315,157.94,157.88,16.4593]
[1724566813275,6.3315,157.94,157.89,2.60614915]
[1724566813476,9.86768339,157.93,157.9,2.60614915]
[1724566813777,6.3323,157.92,157.88,16.4593]
[1724566814074,9.86768339,157.93,157.88,16.4593]
[1724566814974,9.86768339,157.91,157.88,16.4593]
[1724566815958,20.0,157.96,157.88,16.4593]
[1724566816170,9.86768339,157.94,157.88,16.4593]
[1724566816585,16.19948339,157.94,157.88,16.4593]
[1724566819884,6.332,157.93,157.88,16.4593]
[1724566820204,9.86768339,157.92,157.88,16.4593]
[1724566828182,16.19998339,157.92,157.88,16.4593]
[1724566828582,6.3327,157.91,157.88,16.4593]
[1724566829209,6.3331,157.9,157.88,16.4593]
[1724566832221,6.3327,157.91,157.88,16.4593]
[1724566832530,16.19998339,157.92,157.88,16.4593]
[1724566835121,6.3323,157.92,157.88,16.4593]
[1724566835420,16.19998339,157.92,157.88,16.4593]
[1724566835623,6.3327,157.91,157.88,16.4593]
[1724566835798,6.3331,157.9,157.88,16.4593]
[1724566837024,6.3331,157.9,157.82,22.8616]
[1724566837322,16.20078339,157.9,157.82,22.8616]
[1724566839729,60.8285,157.95,157.82,22.8616]
[1724566839730,9.86768339,157.88,157.82,22.8616]
[1724566839948,16.20168339,157.88,157.82,22.8616]
[1724566840629,9.86768339,157.88,157.82,22.8616]
[1724566842640,15.8285,157.95,157.83,1.26703089]
[1724566842839,9.86768339,157.92,157.83,1.26703089]
[1724566843126,9.86768339,157.92,157.82,32.72928339]
[1724566843331,6.3324,157.92,157.82,32.72928339]
[1724566843533,16.19998339,157.92,157.83,1.26682032]
[1724566843954,16.19998339,157.92,157.82,32.72928339]
[1724566845043,16.19998339,157.92,157.82,41.78057418]
[1724566845220,16.19998339,157.92,157.83,9.05129079]
[1724566845425,16.19998339,157.92,157.82,32.72928339]
[1724566847926,16.19998339,157.92,157.82,41.7806462]
[1724566848147,16.19998339,157.92,157.83,9.05136281]
[1724566849754,16.19998339,157.92,157.82,32.72928339]
[1724566849933,16.19998339,157.92,157.83,9.05136196]
[1724566850132,6.3323,157.92,157.83,9.05136196]
[1724566850439,6.3323,157.92,157.76,39.47073356]
[1724566850440,6.3323,157.92,157.76,20.0]
[1724566850645,16.19998339,157.92,157.82,9.86768339]
[1724566852240,1.26683296,157.91,157.82,9.86768339]
[1724566853520,1.26683296,157.91,157.83,22.3284]
[1724566859535,17.46681635,157.92,157.83,22.3284]
[1724566859846,17.46681635,157.92,157.84,4.26703554]
[1724566860048,17.46681635,157.92,157.85,4.26703554]
[1724566860230,17.46681635,157.92,157.86,4.26703554]
[1724566860430,17.46681635,157.92,157.83,22.3284]
[1724566860631,1.26683296,157.91,157.83,22.3284]
[1724566866649,17.46681635,157.92,157.83,22.3284]
[1724566867154,6.3327,157.91,157.83,22.3284]
[1724566867333,6.3327,157.91,157.84,1.58554391]
[1724566867528,6.3327,157.91,157.85,1.58554391]
[1724566867733,17.46691635,157.92,157.86,1.58554391]
[1724566867946,17.46691635,157.92,157.87,1.58554391]
[1724566868152,17.46691635,157.92,157.88,1.58554391]
[1724566868353,17.46691635,157.92,157.89,1.58554391]
[1724566868555,11.13451635,157.92,157.83,22.3284]
[1724566868849,16.19998339,157.92,157.84,1.58558105]
[1724566869050,6.3314,157.95,157.85,1.58558105]
[1724566869254,9.86768339,157.95,157.86,2.85228582]
[1724566869442,16.19888339,157.95,157.87,1.58558105]
[1724566869644,22.3544,157.96,157.88,2.85219463]
[1724566869845,22.3544,157.96,157.89,1.58558105]
[1724566870058,6.3295,157.99,157.9,2.85195912]
[1724566870256,7.59673296,157.98,157.91,1.58558105]
[1724566870457,7.59673296,157.98,157.92,1.58558105]
[1724566870638,7.59673296,157.98,157.93,1.58558105]
[1724566870842,9.86768339,157.97,157.88,25.15098339]
[1724566871043,1.26683296,157.96,157.89,1.58511135]
[1724566871252,9.86768339,157.97,157.9,2.85150759]
[1724566871453,9.86768339,157.97,157.91,1.58511135]
[1724566871660,9.86768339,157.97,157.92,1.58511135]
[1724566871852,17.46481635,157.97,157.93,1.58511135]
[1724566872153,17.46481635,157.97,157.88,25.15098339]
[1724566872341,17.46481635,157.97,157.89,1.58512823]
[1724566872541,6.3299,157.98,157.9,2.85153236]
[1724566872748,16.19758339,157.98,157.91,1.58512823]
[1724566872937,1.26683296,157.97,157.92,1.58512823]
[1724566873138,1.26683296,157.97,157.93,1.58512823]
[1724566873351,1.26683296,157.97,157.88,25.15098339]
[1724566873560,1.26683296,157.97,157.89,1.58506006]
[1724566873854,7.59713296,157.97,157.9,1.58506006]
[1724566874156,7.59713296,157.97,157.91,1.58506006]
[1724566874365,1.26683296,157.97,157.92,1.58506006]
[1724566874578,11.13451635,157.98,157.93,1.58506006]
[1724566874768,11.13451635,157.98,157.88,25.15098339]
[1724566875067,11.13451635,157.98,157.89,1.58506774]
[1724566875284,11.13451635,157.98,157.9,1.58506774]
[1724566875436,11.13451635,157.98,157.88,25.15098339]
[1724566875637,17.46451635,157.98,157.89,1.58506759]
[1724566875867,17.46451635,157.98,157.88,25.15098339]
[1724566876045,17.46451635,157.98,157.89,1.58506759]
[1724566876244,17.46451635,157.98,157.9,1.58506759]
[1724566876447,9.86768339,157.96,157.91,1.58506759]
[1724566876648,1.26683296,157.95,157.92,1.58506759]
[1724566876868,1.26683296,157.95,157.88,15.2833]
[1724566877163,1.26683296,157.95,157.89,1.58506759]
[1724566877368,1.26683296,157.95,157.9,1.58506759]
[1724566877578,1.26683296,157.95,157.91,1.58506759]
[1724566877740,1.26683296,157.95,157.92,1.58506759]
[1724566877947,1.26683296,157.95,157.88,15.2833]
[1724566878270,7.59803296,157.95,157.89,1.58513241]
[1724566878455,7.59803296,157.95,157.9,1.58513241]
[1724566878660,1.26683296,157.94,157.88,15.2833]
[1724566879051,9.86768339,157.95,157.89,1.58521887]
[1724566879269,9.86768339,157.95,157.9,1.58521887]
[1724566879484,9.86768339,157.95,157.88,15.2833]
[1724566879485,11.13451635,157.95,157.91,1.58521887]
[1724566879772,1.26683296,157.95,157.88,15.2833]
[1724566879947,1.26683296,157.95,157.89,1.58511566]
[1724566880149,1.26683296,157.95,157.9,1.58511566]
[1724566880350,1.26683296,157.95,157.88,15.2833]
[1724566880351,1.26683296,157.95,157.91,1.58511566]
[1724566880563,1.26683296,157.95,157.88,15.2833]
[1724566880769,1.26683296,157.95,157.89,1.5851498]
[1724566881071,1.26683296,157.95,157.9,1.5851498]
[1724566881368,1.26683296,157.95,157.91,1.5851498]
[1724566881571,9.86768339,157.94,157.89,1.58522389]
[1724566881759,1.26683296,157.93,157.85,9.86768339]
[1724566881955,1.26683296,157.93,157.84,15.1797]
[1724566882160,11.13451635,157.92,157.84,15.1797]
[1724566882362,11.13451635,157.92,157.85,1.58535488]
[1724566882561,11.13451635,157.92,157.86,1.58535488]
[1724566882765,11.13451635,157.92,157.87,1.58535488]
[1724566883061,11.13451635,157.92,157.84,15.1797]
[1724566883266,1.26683296,157.91,157.85,1.58558733]
[1724566883466,1.26683296,157.91,157.86,1.58558733]
[1724566883668,1.26683296,157.91,157.87,1.58558733]
[1724566883853,1.26683296,157.91,157.84,15.1797]
[1724566884053,1.26683296,157.91,157.85,1.58557031]
[1724566884358,1.26683296,157.91,157.86,1.58557031]
[1724566884553,1.26683296,157.91,157.87,1.58557031]
[1724566884755,1.26683296,157.91,157.84,15.1797]
[1724566884961,1.26683296,157.91,157.85,1.58556128]
[1724566885166,1.26683296,157.91,157.86,1.58556128]
[1724566885366,1.26683296,157.91,157.87,1.58556128]
[1724566885571,1.26683296,157.91,157.82,9.86768339]
[1724566885770,1.26683296,157.91,157.83,1.58556158]
[1724566886568,1.26683296,157.91,157.84,1.58556158]
[1724566886767,1.26683296,157.91,157.82,9.86768339]
[1724566887073,1.26683296,157.91,157.83,3.1711386]
[1724566887261,1.26683296,157.91,157.84,1.58556945]
[1724566887460,1.26683296,157.91,157.85,1.58556945]
[1724566887660,1.26683296,157.91,157.86,1.58556945]
[1724566887883,1.26683296,157.91,157.87,1.58556945]
[1724566888074,1.26683296,157.91,157.82,9.86768339]
[1724566888275,1.26683296,157.91,157.83,1.58556989]
[1724566888477,1.26683296,157.91,157.84,1.58556989]
[1724566888678,1.26683296,157.91,157.85,1.58556989]
[1724566888880,1.26683296,157.91,157.86,1.58556989]
[1724566889071,1.26683296,157.91,157.87,1.58556989]
[1724566889272,1.26683296,157.91,157.82,9.86768339]
[1724566889477,1.26683296,157.91,157.83,1.5855687]
[1724566889662,1.26683296,157.91,157.84,1.5855687]
[1724566889863,1.26683296,157.91,157.82,9.86768339]
[1724566890064,1.26683296,157.91,157.83,1.58557034]
[1724566890298,1.26683296,157.91,157.84,1.58557034]
[1724566890475,1.26683296,157.91,157.85,1.58557034]
[1724566890805,1.26683296,157.91,157.86,1.58557034]
[1724566891014,1.26683296,157.91,157.87,1.58557034]
[1724566891172,1.26683296,157.91,157.82,9.86768339]
[1724566891376,1.26683296,157.91,157.83,1.58558826]
[1724566891583,1.26683296,157.91,157.84,1.58558826]
[1724566891906,1.26683296,157.91,157.85,1.58558826]
[1724566892104,1.26683296,157.91,157.86,1.58558871]
[1724566892292,1.26683296,157.91,157.87,1.58558871]
[1724566892613,1.26683296,157.91,157.82,9.86768339]
[1724566892769,6.3324,157.92,157.83,47.85245111]
[1724566892969,6.3324,157.92,157.84,1.58558826]
[1724566893171,6.3324,157.92,157.83,46.26686285]
[1724566893382,6.3324,157.92,157.85,1.5855336]
[1724566893685,6.3324,157.92,157.86,1.5855336]
[1724566893907,6.3324,157.92,157.87,1.5855336]
[1724566894100,7.59883296,157.93,157.83,45.0]
[1724566894289,17.46651635,157.93,157.84,1.58555136]
[1724566894491,17.46651635,157.93,157.85,1.58555136]
[1724566894721,17.46651635,157.93,157.86,1.58555136]
[1724566895022,17.46651635,157.93,157.87,1.58555136]
[1724566895311,1.26683296,157.92,157.83,45.0]
[1724566895497,1.26683296,157.92,157.84,1.58555196]
[1724566895696,1.26683296,157.92,157.85,1.58555196]
[1724566895898,1.26683296,157.92,157.86,1.58555196]
[1724566896207,1.26683296,157.92,157.87,1.58555196]
[1724566896409,17.46651635,157.93,157.88,1.58543406]
[1724566896606,17.46651635,157.93,157.84,9.86768339]
[1724566896823,17.46651635,157.93,157.85,1.58543436]
[1724566896999,17.46651635,157.93,157.86,1.58543436]